[Event "Titled Tuesday Blitz February 22 Early 2022"]
[White "Shtyka, Sergey"]
[Black "Tsydypov, Zhamsaran"]
[WhiteFideId "4138465"]
[BlackFideId "4108566"]
[WhiteElo "2014"]
[BlackElo "2614"]
[Result "0-1"]
[Round "01"]
[TimeControl "180+1"]
[Date "2022.02.22"]
[WhiteClock "0:00:07"]
[BlackClock "0:00:08"]

1. e4 {[%clk 0:02:54]}  c6 {[%clk 0:02:53]} 2. Nf3 {[%clk 0:02:53]}  d5 {[%clk 0:02:50]} 3. Nc3 {[%clk 0:02:53]}  dxe4 {[%clk 0:02:48]} 4. Nxe4 {[%clk 0:02:54]}  Bg4 {[%clk 0:02:45]} 5. h3 {[%clk 0:02:53]}  Bh5 {[%clk 0:02:44]} 6. Ng3 {[%clk 0:02:50]}  Bg6 {[%clk 0:02:42]} 7. h4 {[%clk 0:02:50]}  Nf6 {[%clk 0:02:34]} 8. h5 {[%clk 0:02:45]}  Be4 {[%clk 0:02:34]} 9. Nxe4 {[%clk 0:02:43]}  Nxe4 {[%clk 0:02:33]} 10. d3 {[%clk 0:02:32]}  Nf6 {[%clk 0:02:31]} 11. h6 {[%clk 0:02:27]}  gxh6 {[%clk 0:02:29]} 12. Bxh6 {[%clk 0:02:26]}  Bxh6 {[%clk 0:02:28]} 13. Rxh6 {[%clk 0:02:25]}  Qb6 {[%clk 0:02:25]} 14. Rxf6 {[%clk 0:01:48]}  exf6 {[%clk 0:02:24]} 15. Qe2+ {[%clk 0:01:48]}  Kd8 {[%clk 0:02:18]} 16. O-O-O {[%clk 0:01:47]}  Nd7 {[%clk 0:02:18]} 17. d4 {[%clk 0:01:42]}  Qa5 {[%clk 0:02:12]} 18. Kb1 {[%clk 0:01:40]}  Kc7 {[%clk 0:02:08]} 19. Qe4 {[%clk 0:01:18]}  Qd5 {[%clk 0:02:05]} 20. Qf4+ {[%clk 0:01:14]}  Qd6 {[%clk 0:02:05]} 21. Qd2 {[%clk 0:01:09]}  Rae8 {[%clk 0:02:00]} 22. Bc4 {[%clk 0:01:04]}  Re7 {[%clk 0:01:58]} 23. a3 {[%clk 0:01:03]}  Kb8 {[%clk 0:01:55]} 24. Qh6 {[%clk 0:00:59]}  Nb6 {[%clk 0:01:29]} 25. Bb3 {[%clk 0:00:53]}  Nd5 {[%clk 0:01:27]} 26. Qg7 {[%clk 0:00:42]}  Rd8 {[%clk 0:01:08]} 27. Qxh7 {[%clk 0:00:41]}  a5 {[%clk 0:01:06]} 28. g3 {[%clk 0:00:38]}  Re2 {[%clk 0:01:01]} 29. Qxf7 {[%clk 0:00:20]}  Rxf2 {[%clk 0:00:59]} 30. Nd2 {[%clk 0:00:20]}  Re2 {[%clk 0:00:35]} 31. Nc4 {[%clk 0:00:16]}  Qxg3 {[%clk 0:00:29]} 32. Nxa5 {[%clk 0:00:14]}  Qc7 {[%clk 0:00:28]} 33. Qh5 {[%clk 0:00:14]}  Rh2 {[%clk 0:00:25]} 34. Nxc6+ {[%clk 0:00:12]}  bxc6 {[%clk 0:00:23]} 35. Qf5 {[%clk 0:00:11]}  Ne3 {[%clk 0:00:23]} 36. Qxf6 {[%clk 0:00:10]}  Nxd1 {[%clk 0:00:22]} 37. d5 {[%clk 0:00:10]}  cxd5 {[%clk 0:00:21]} 38. Qd4 {[%clk 0:00:10]}  Rh1 {[%clk 0:00:10]} 39. Ka2 {[%clk 0:00:11]}  Rd6 {[%clk 0:00:08]} 40. Bxd5 {[%clk 0:00:10]}  Nc3+ {[%clk 0:00:07]} 41. bxc3 {[%clk 0:00:10]}  Qb6 {[%clk 0:00:07]} 42. Qxb6+ {[%clk 0:00:07]}  Rxb6 {[%clk 0:00:07]} 43. Bb3 {[%clk 0:00:08]}  Rh2 {[%clk 0:00:07]} 44. a4 {[%clk 0:00:07]}  Kc7 {[%clk 0:00:07]} 45. Ka3 {[%clk 0:00:08]}  Rc6 {[%clk 0:00:08]} 46. c4 {[%clk 0:00:08]}  Rh4 {[%clk 0:00:08]} 47. Kb4 {[%clk 0:00:08]}  Rb6+ {[%clk 0:00:08]} 48. Kc5 {[%clk 0:00:08]}  Rd6 {[%clk 0:00:06]} 49. Kb4 {[%clk 0:00:08]}  Kb6 {[%clk 0:00:06]} 50. a5+ {[%clk 0:00:07]}  Kc7 {[%clk 0:00:06]} 51. Ka4 {[%clk 0:00:06]}  Rc6 {[%clk 0:00:06]} 52. Kb5 {[%clk 0:00:07]}  Kb7 {[%clk 0:00:05]} 53. c5 {[%clk 0:00:06]}  Rh5 {[%clk 0:00:04]} 54. c4 {[%clk 0:00:07]}  Rcxc5+ {[%clk 0:00:05]} 55. Kb4 {[%clk 0:00:07]}  Rxa5 {[%clk 0:00:05]} 56. Bc2 {[%clk 0:00:08]}  Rac5 {[%clk 0:00:06]} 57. Be4+ {[%clk 0:00:08]}  Kb6 {[%clk 0:00:07]} 58. Bf3 {[%clk 0:00:08]}  Rh4 {[%clk 0:00:07]} 59. Bd5 {[%clk 0:00:08]}  Rd4 {[%clk 0:00:07]} 60. Be6 {[%clk 0:00:08]}  Rd6 {[%clk 0:00:07]} 61. Bf7 {[%clk 0:00:08]}  Rf6 {[%clk 0:00:07]} 62. Be8 {[%clk 0:00:08]}  Rf4 {[%clk 0:00:07]} 63. Bb5 {[%clk 0:00:07]}  Rxb5+ {[%clk 0:00:07]} 64. Kc3 {[%clk 0:00:07]}  Rc5 {[%clk 0:00:08]} 0-1


[Site "https://www.chess.com"]

[Event "Titled Tuesday Blitz February 22 Early 2022"]
[White "Shuvalova, Polina"]
[Black "Skuhala, Barbara"]
[WhiteFideId "24171760"]
[BlackFideId "14605465"]
[WhiteElo "2355"]
[BlackElo "2159"]
[Result "1/2-1/2"]
[Round "01"]
[TimeControl "180+1"]
[Date "2022.02.22"]
[WhiteClock "0:00:41"]
[BlackClock "0:00:45"]

1. d4 {[%clk 0:02:59]}  Nf6 {[%clk 0:02:59]} 2. Nf3 {[%clk 0:02:58]}  e6 {[%clk 0:02:59]} 3. Bf4 {[%clk 0:02:56]}  d5 {[%clk 0:02:59]} 4. e3 {[%clk 0:02:56]}  Bd6 {[%clk 0:02:59]} 5. Nbd2 {[%clk 0:02:56]}  O-O {[%clk 0:03:00]} 6. c3 {[%clk 0:02:55]}  Nbd7 {[%clk 0:03:00]} 7. Bd3 {[%clk 0:02:54]}  Re8 {[%clk 0:03:00]} 8. Bxd6 {[%clk 0:02:54]}  cxd6 {[%clk 0:03:00]} 9. O-O {[%clk 0:02:54]}  e5 {[%clk 0:03:00]} 10. Be2 {[%clk 0:02:50]}  e4 {[%clk 0:03:00]} 11. Ne1 {[%clk 0:02:50]}  Nf8 {[%clk 0:03:01]} 12. Qb3 {[%clk 0:02:46]}  Ng6 {[%clk 0:03:00]} 13. Rc1 {[%clk 0:02:39]}  a6 {[%clk 0:03:00]} 14. a4 {[%clk 0:02:39]}  Qe7 {[%clk 0:02:56]} 15. Nc2 {[%clk 0:02:33]}  h6 {[%clk 0:02:55]} 16. a5 {[%clk 0:02:29]}  Be6 {[%clk 0:02:56]} 17. Nb4 {[%clk 0:02:26]}  Rac8 {[%clk 0:02:49]} 18. Rc2 {[%clk 0:02:26]}  Nh4 {[%clk 0:02:28]} 19. g3 {[%clk 0:02:18]}  Ng6 {[%clk 0:02:03]} 20. Rfc1 {[%clk 0:02:15]}  h5 {[%clk 0:02:03]} 21. c4 {[%clk 0:02:13]}  dxc4 {[%clk 0:02:03]} 22. Bxc4 {[%clk 0:02:14]}  Bxc4 {[%clk 0:01:57]} 23. Nxc4 {[%clk 0:02:02]}  h4 {[%clk 0:01:49]} 24. Nb6 {[%clk 0:02:00]}  Rxc2 {[%clk 0:01:47]} 25. Rxc2 {[%clk 0:01:57]}  hxg3 {[%clk 0:01:47]} 26. hxg3 {[%clk 0:01:57]}  Ng4 {[%clk 0:01:44]} 27. Qd5 {[%clk 0:01:40]}  Qf6 {[%clk 0:01:35]} 28. Qc4 {[%clk 0:01:24]}  Qg5 {[%clk 0:01:31]} 29. Qf1 {[%clk 0:01:19]}  Nxe3 {[%clk 0:00:58]} 30. fxe3 {[%clk 0:01:17]}  Qxg3+ {[%clk 0:00:58]} 31. Rg2 {[%clk 0:01:13]}  Qxe3+ {[%clk 0:00:58]} 32. Qf2 {[%clk 0:01:13]}  Qc1+ {[%clk 0:00:57]} 33. Qf1 {[%clk 0:01:10]}  Qe3+ {[%clk 0:00:55]} 34. Kh1 {[%clk 0:00:43]}  Qh3+ {[%clk 0:00:47]} 35. Kg1 {[%clk 0:00:41]}  Qe3+ {[%clk 0:00:45]} 1/2-1/2


[Site "https://www.chess.com"]

[Event "Titled Tuesday Blitz February 22 Early 2022"]
[White "Singh, Arvinder Preet"]
[Black "Bellissimo, Joseph F."]
[WhiteFideId "5013240"]
[BlackFideId "2609843"]
[WhiteElo "2147"]
[BlackElo "2061"]
[Result "1-0"]
[Round "01"]
[TimeControl "180+1"]
[Date "2022.02.22"]
[WhiteClock "0:00:13"]
[BlackClock "0:00:18"]

1. e4 {[%clk 0:02:58]}  e6 {[%clk 0:02:58]} 2. d4 {[%clk 0:02:58]}  d5 {[%clk 0:02:58]} 3. Nc3 {[%clk 0:02:58]}  Nf6 {[%clk 0:02:57]} 4. e5 {[%clk 0:02:58]}  Nfd7 {[%clk 0:02:57]} 5. f4 {[%clk 0:02:59]}  c5 {[%clk 0:02:57]} 6. Nf3 {[%clk 0:03:00]}  Nc6 {[%clk 0:02:58]} 7. Ne2 {[%clk 0:03:00]}  a6 {[%clk 0:02:57]} 8. c3 {[%clk 0:03:00]}  b5 {[%clk 0:02:57]} 9. dxc5 {[%clk 0:02:58]}  Bxc5 {[%clk 0:02:55]} 10. Ned4 {[%clk 0:02:59]}  Qb6 {[%clk 0:02:53]} 11. Be3 {[%clk 0:02:58]}  f6 {[%clk 0:02:49]} 12. b4 {[%clk 0:02:44]}  Bxd4 {[%clk 0:02:44]} 13. Bxd4 {[%clk 0:02:33]}  Nxd4 {[%clk 0:02:40]} 14. Qxd4 {[%clk 0:02:26]}  O-O {[%clk 0:02:34]} 15. Bd3 {[%clk 0:02:16]}  a5 {[%clk 0:02:24]} 16. Qxb6 {[%clk 0:02:05]}  Nxb6 {[%clk 0:02:23]} 17. Bxb5 {[%clk 0:02:04]}  axb4 {[%clk 0:02:21]} 18. cxb4 {[%clk 0:02:04]}  Ra3 {[%clk 0:02:16]} 19. O-O {[%clk 0:01:58]}  Rd8 {[%clk 0:02:03]} 20. Rfd1 {[%clk 0:01:55]}  Kf7 {[%clk 0:01:59]} 21. Nd4 {[%clk 0:01:51]}  Bd7 {[%clk 0:01:53]} 22. Bxd7 {[%clk 0:01:50]}  Nxd7 {[%clk 0:01:51]} 23. Nb5 {[%clk 0:01:48]}  Ra4 {[%clk 0:01:45]} 24. exf6 {[%clk 0:01:40]}  Rxb4 {[%clk 0:01:41]} 25. Nd4 {[%clk 0:01:33]}  Rc8 {[%clk 0:01:11]} 26. fxg7 {[%clk 0:01:32]}  Nf6 {[%clk 0:01:10]} 27. Rab1 {[%clk 0:01:26]}  Rcc4 {[%clk 0:01:01]} 28. Rxb4 {[%clk 0:01:24]}  Rxb4 {[%clk 0:01:02]} 29. g3 {[%clk 0:01:08]}  Ne8 {[%clk 0:00:53]} 30. g8=Q+ {[%clk 0:01:01]}  Kxg8 {[%clk 0:00:51]} 31. Nxe6 {[%clk 0:01:01]}  Nf6 {[%clk 0:00:47]} 32. Rd4 {[%clk 0:00:57]}  Rb1+ {[%clk 0:00:45]} 33. Kg2 {[%clk 0:00:57]}  Rb2+ {[%clk 0:00:46]} 34. Kf3 {[%clk 0:00:52]}  Rxa2 {[%clk 0:00:47]} 35. h3 {[%clk 0:00:50]}  h6 {[%clk 0:00:47]} 36. g4 {[%clk 0:00:50]}  Kf7 {[%clk 0:00:46]} 37. f5 {[%clk 0:00:47]}  Ra3+ {[%clk 0:00:45]} 38. Kg2 {[%clk 0:00:46]}  Ra2+ {[%clk 0:00:45]} 39. Kg3 {[%clk 0:00:46]}  Ra3+ {[%clk 0:00:46]} 40. Kh4 {[%clk 0:00:43]}  Rb3 {[%clk 0:00:42]} 41. Nf4 {[%clk 0:00:43]}  Rb5 {[%clk 0:00:41]} 42. Ra4 {[%clk 0:00:43]}  Rb7 {[%clk 0:00:39]} 43. Nh5 {[%clk 0:00:38]}  Ne4 {[%clk 0:00:38]} 44. Rd4 {[%clk 0:00:36]}  Rd7 {[%clk 0:00:37]} 45. Nf4 {[%clk 0:00:34]}  Nf6 {[%clk 0:00:34]} 46. Kg3 {[%clk 0:00:34]}  Rb7 {[%clk 0:00:32]} 47. Kf3 {[%clk 0:00:29]}  Rb3+ {[%clk 0:00:32]} 48. Nd3 {[%clk 0:00:29]}  Ne4 {[%clk 0:00:30]} 49. Kf4 {[%clk 0:00:28]}  Ng5 {[%clk 0:00:29]} 50. h4 {[%clk 0:00:27]}  Ne4 {[%clk 0:00:26]} 51. Rxd5 {[%clk 0:00:26]}  Nf6 {[%clk 0:00:27]} 52. Rd4 {[%clk 0:00:24]}  Rb1 {[%clk 0:00:27]} 53. g5 {[%clk 0:00:24]}  Rf1+ {[%clk 0:00:28]} 54. Ke5 {[%clk 0:00:22]}  hxg5 {[%clk 0:00:27]} 55. hxg5 {[%clk 0:00:22]}  Re1+ {[%clk 0:00:26]} 56. Kd6 {[%clk 0:00:22]}  Ne8+ {[%clk 0:00:25]} 57. Kd7 {[%clk 0:00:22]}  Re7+ {[%clk 0:00:25]} 58. Kc6 {[%clk 0:00:21]}  Rc7+ {[%clk 0:00:26]} 59. Kb5 {[%clk 0:00:20]}  Ra7 {[%clk 0:00:27]} 60. Ne5+ {[%clk 0:00:20]}  Kf8 {[%clk 0:00:26]} 61. g6 {[%clk 0:00:20]}  Rb7+ {[%clk 0:00:23]} 62. Kc6 {[%clk 0:00:19]}  Rc7+ {[%clk 0:00:24]} 63. Kb6 {[%clk 0:00:19]}  Re7 {[%clk 0:00:22]} 64. Nd7+ {[%clk 0:00:19]}  Kg8 {[%clk 0:00:21]} 65. Rd6 {[%clk 0:00:19]}  Re1 {[%clk 0:00:20]} 66. Re6 {[%clk 0:00:18]}  Rb1+ {[%clk 0:00:21]} 67. Kc6 {[%clk 0:00:18]}  Ng7 {[%clk 0:00:20]} 68. Rf6 {[%clk 0:00:17]}  Rc1+ {[%clk 0:00:21]} 69. Nc5 {[%clk 0:00:17]}  Nh5 {[%clk 0:00:21]} 70. Re6 {[%clk 0:00:16]}  Kg7 {[%clk 0:00:21]} 71. Re7+ {[%clk 0:00:16]}  Kg8 {[%clk 0:00:21]} 72. Kd6 {[%clk 0:00:15]}  Nf6 {[%clk 0:00:22]} 73. Ne6 {[%clk 0:00:15]}  Ne4+ {[%clk 0:00:22]} 74. Ke5 {[%clk 0:00:14]}  Rc5+ {[%clk 0:00:20]} 75. Kxe4 {[%clk 0:00:14]}  Rc8 {[%clk 0:00:20]} 76. f6 {[%clk 0:00:13]}  Kh8 {[%clk 0:00:19]} 77. Rh7+ {[%clk 0:00:13]}  Kg8 {[%clk 0:00:18]} 78. f7# {[%clk 0:00:13]} 1-0


[Site "https://www.chess.com"]

[Event "Titled Tuesday Blitz February 22 Early 2022"]
[White "Srdanovic, Jovana"]
[Black "Zivkovic, Nemanja"]
[WhiteFideId "954810"]
[BlackFideId "942154"]
[WhiteElo "2059"]
[BlackElo "2388"]
[Result "1-0"]
[Round "01"]
[TimeControl "180+1"]
[Date "2022.02.22"]
[WhiteClock "0:00:32"]
[BlackClock "0:00:21"]

1. d4 {[%clk 0:03:00]}  Nf6 {[%clk 0:02:55]} 2. c4 {[%clk 0:03:00]}  e6 {[%clk 0:02:53]} 3. Nf3 {[%clk 0:02:55]}  b6 {[%clk 0:02:53]} 4. a3 {[%clk 0:02:54]}  Bb7 {[%clk 0:02:51]} 5. Nc3 {[%clk 0:02:54]}  g6 {[%clk 0:02:51]} 6. e3 {[%clk 0:02:51]}  Bg7 {[%clk 0:02:49]} 7. Bd3 {[%clk 0:02:51]}  d6 {[%clk 0:02:40]} 8. O-O {[%clk 0:02:49]}  Nbd7 {[%clk 0:02:36]} 9. e4 {[%clk 0:02:44]}  e5 {[%clk 0:02:32]} 10. d5 {[%clk 0:02:41]}  O-O {[%clk 0:02:32]} 11. b4 {[%clk 0:02:40]}  Nh5 {[%clk 0:02:31]} 12. g3 {[%clk 0:02:35]}  Bc8 {[%clk 0:02:29]} 13. Ra2 {[%clk 0:02:16]}  a5 {[%clk 0:02:26]} 14. Qe2 {[%clk 0:02:09]}  Ndf6 {[%clk 0:02:10]} 15. Nh4 {[%clk 0:01:56]}  Bh3 {[%clk 0:02:08]} 16. Re1 {[%clk 0:01:50]}  Nd7 {[%clk 0:01:50]} 17. Nf3 {[%clk 0:01:47]}  h6 {[%clk 0:01:46]} 18. Kh1 {[%clk 0:01:21]}  f5 {[%clk 0:01:35]} 19. Ng1 {[%clk 0:01:19]}  fxe4 {[%clk 0:01:32]} 20. Nxe4 {[%clk 0:01:11]}  Bf5 {[%clk 0:01:27]} 21. g4 {[%clk 0:01:08]}  Nf4 {[%clk 0:01:02]} 22. Bxf4 {[%clk 0:01:05]}  Bxe4+ {[%clk 0:01:02]} 23. Qxe4 {[%clk 0:01:03]}  Rxf4 {[%clk 0:01:01]} 24. Qxg6 {[%clk 0:01:03]}  axb4 {[%clk 0:00:59]} 25. Nh3 {[%clk 0:00:55]}  Nf8 {[%clk 0:00:46]} 26. Qh5 {[%clk 0:00:52]}  Rd4 {[%clk 0:00:43]} 27. Bf5 {[%clk 0:00:51]}  b3 {[%clk 0:00:26]} 28. Rb2 {[%clk 0:00:49]}  Qe8 {[%clk 0:00:27]} 29. Qxe8 {[%clk 0:00:41]}  Rxe8 {[%clk 0:00:28]} 30. Rxb3 {[%clk 0:00:41]}  Rxc4 {[%clk 0:00:28]} 31. g5 {[%clk 0:00:39]}  hxg5 {[%clk 0:00:28]} 32. Nxg5 {[%clk 0:00:39]}  Bh6 {[%clk 0:00:25]} 33. Ne6 {[%clk 0:00:38]}  Nxe6 {[%clk 0:00:20]} 34. Bxe6+ {[%clk 0:00:39]}  Kg7 {[%clk 0:00:20]} 35. Rg3+ {[%clk 0:00:39]}  Kf6 {[%clk 0:00:20]} 36. Reg1 {[%clk 0:00:38]}  Rh8 {[%clk 0:00:19]} 37. Rg6+ {[%clk 0:00:36]}  Ke7 {[%clk 0:00:18]} 38. Rg8 {[%clk 0:00:35]}  Rxg8 {[%clk 0:00:18]} 39. Rxg8 {[%clk 0:00:36]}  Bf4 {[%clk 0:00:19]} 40. Rg7+ {[%clk 0:00:35]}  Kf6 {[%clk 0:00:20]} 41. h4 {[%clk 0:00:33]}  e4 {[%clk 0:00:19]} 42. Rf7+ {[%clk 0:00:33]}  Ke5 {[%clk 0:00:20]} 43. Rf5+ {[%clk 0:00:33]}  Kd4 {[%clk 0:00:20]} 44. Rxf4 {[%clk 0:00:33]}  Rc2 {[%clk 0:00:21]} 45. Kg2 {[%clk 0:00:32]}  Kd3 {[%clk 0:00:21]} 46. Bf5 {[%clk 0:00:32]} 1-0


[Site "https://www.chess.com"]

[Event "Titled Tuesday Blitz February 22 Early 2022"]
[White "Srebrnic, Marko"]
[Black "Yuan, Qingyu"]
[WhiteFideId "14603616"]
[BlackFideId "8609772"]
[WhiteElo "2340"]
[BlackElo "2359"]
[Result "1-0"]
[Round "01"]
[TimeControl "180+1"]
[Date "2022.02.22"]
[WhiteClock "0:00:19"]
[BlackClock "0:00:05"]

1. e4 {[%clk 0:02:59]}  c6 {[%clk 0:03:00]} 2. d4 {[%clk 0:02:58]}  d5 {[%clk 0:03:00]} 3. f3 {[%clk 0:02:59]}  Qb6 {[%clk 0:03:00]} 4. Nc3 {[%clk 0:02:57]}  dxe4 {[%clk 0:03:01]} 5. fxe4 {[%clk 0:02:57]}  h5 {[%clk 0:03:01]} 6. Nge2 {[%clk 0:02:53]}  e5 {[%clk 0:02:57]} 7. Be3 {[%clk 0:02:48]}  exd4 {[%clk 0:02:41]} 8. Bxd4 {[%clk 0:02:47]}  Qc7 {[%clk 0:02:41]} 9. Qd2 {[%clk 0:02:35]}  Bg4 {[%clk 0:02:24]} 10. O-O-O {[%clk 0:02:32]}  Nd7 {[%clk 0:02:24]} 11. h3 {[%clk 0:02:29]}  Be6 {[%clk 0:01:59]} 12. Nf4 {[%clk 0:02:27]}  Ngf6 {[%clk 0:01:53]} 13. Nxe6 {[%clk 0:02:23]}  fxe6 {[%clk 0:01:53]} 14. Bc4 {[%clk 0:02:23]}  e5 {[%clk 0:01:46]} 15. Be3 {[%clk 0:02:23]}  b5 {[%clk 0:01:35]} 16. Be6 {[%clk 0:02:21]}  O-O-O {[%clk 0:01:35]} 17. Rhf1 {[%clk 0:02:07]}  Kb7 {[%clk 0:01:32]} 18. Rxf6 {[%clk 0:01:44]}  gxf6 {[%clk 0:01:32]} 19. Qxd7 {[%clk 0:01:37]}  Bb4 {[%clk 0:01:06]} 20. Qxc7+ {[%clk 0:01:30]}  Kxc7 {[%clk 0:01:06]} 21. Rf1 {[%clk 0:01:26]}  Be7 {[%clk 0:00:56]} 22. a3 {[%clk 0:01:20]}  a5 {[%clk 0:00:56]} 23. Ne2 {[%clk 0:01:18]}  Rd6 {[%clk 0:00:51]} 24. Bf5 {[%clk 0:01:12]}  Rdd8 {[%clk 0:00:51]} 25. g4 {[%clk 0:00:56]}  h4 {[%clk 0:00:34]} 26. Ng1 {[%clk 0:00:51]}  b4 {[%clk 0:00:31]} 27. a4 {[%clk 0:00:50]}  b3 {[%clk 0:00:31]} 28. c3 {[%clk 0:00:49]}  Rd3 {[%clk 0:00:30]} 29. Re1 {[%clk 0:00:40]}  Rhd8 {[%clk 0:00:27]} 30. Nf3 {[%clk 0:00:39]}  Bf8 {[%clk 0:00:25]} 31. g5 {[%clk 0:00:35]}  fxg5 {[%clk 0:00:22]} 32. Bg4 {[%clk 0:00:30]}  Be7 {[%clk 0:00:17]} 33. Nxe5 {[%clk 0:00:30]}  Rxe3 {[%clk 0:00:15]} 34. Rxe3 {[%clk 0:00:29]}  Bd6 {[%clk 0:00:16]} 35. Nd3 {[%clk 0:00:26]}  Bg3 {[%clk 0:00:16]} 36. Kd2 {[%clk 0:00:25]}  c5 {[%clk 0:00:16]} 37. Ke2 {[%clk 0:00:25]}  c4 {[%clk 0:00:15]} 38. Nf2 {[%clk 0:00:21]}  Bf4 {[%clk 0:00:12]} 39. e5 {[%clk 0:00:21]}  Bxe3 {[%clk 0:00:06]} 40. Kxe3 {[%clk 0:00:22]}  Kc6 {[%clk 0:00:06]} 41. Bf3+ {[%clk 0:00:21]}  Kc7 {[%clk 0:00:04]} 42. Ne4 {[%clk 0:00:19]}  Rd3+ {[%clk 0:00:04]} 43. Ke2 {[%clk 0:00:20]}  g4 {[%clk 0:00:05]} 44. Bxg4 {[%clk 0:00:19]}  Kd8 {[%clk 0:00:04]} 45. e6 {[%clk 0:00:19]}  Ke7 {[%clk 0:00:04]} 46. Nc5 {[%clk 0:00:19]}  Rxc3 {[%clk 0:00:04]} 47. bxc3 {[%clk 0:00:18]}  b2 {[%clk 0:00:05]} 48. Bf5 {[%clk 0:00:19]} 1-0


[Site "https://www.chess.com"]

[Event "Titled Tuesday Blitz February 22 Early 2022"]
[White "Sviridova, Vlada"]
[Black "Jaracz, Pawel"]
[WhiteFideId "24109606"]
[BlackFideId "1102222"]
[WhiteElo "2101"]
[BlackElo "2429"]
[Result "0-1"]
[Round "01"]
[TimeControl "180+1"]
[Date "2022.02.22"]
[WhiteClock "0:00:02"]
[BlackClock "0:00:08"]

1. d4 {[%clk 0:03:00]}  Nf6 {[%clk 0:02:44]} 2. c4 {[%clk 0:03:01]}  e6 {[%clk 0:02:44]} 3. Nf3 {[%clk 0:03:01]}  b6 {[%clk 0:02:42]} 4. g3 {[%clk 0:03:01]}  Ba6 {[%clk 0:02:40]} 5. b3 {[%clk 0:03:01]}  Bb4+ {[%clk 0:02:38]} 6. Bd2 {[%clk 0:03:01]}  Be7 {[%clk 0:02:37]} 7. Bg2 {[%clk 0:03:01]}  Bb7 {[%clk 0:02:36]} 8. O-O {[%clk 0:03:00]}  O-O {[%clk 0:02:35]} 9. Nc3 {[%clk 0:02:58]}  d5 {[%clk 0:02:34]} 10. Ne5 {[%clk 0:02:58]}  Nbd7 {[%clk 0:02:31]} 11. cxd5 {[%clk 0:02:48]}  exd5 {[%clk 0:02:29]} 12. Nd3 {[%clk 0:02:37]}  Ne4 {[%clk 0:02:18]} 13. Be1 {[%clk 0:02:30]}  Ndf6 {[%clk 0:02:09]} 14. Ne5 {[%clk 0:02:20]}  a6 {[%clk 0:01:56]} 15. Rc1 {[%clk 0:02:14]}  Bd6 {[%clk 0:01:55]} 16. h4 {[%clk 0:01:57]}  Qe7 {[%clk 0:01:55]} 17. Nd3 {[%clk 0:01:49]}  Rad8 {[%clk 0:01:49]} 18. Rc2 {[%clk 0:01:47]}  Rfe8 {[%clk 0:01:47]} 19. a4 {[%clk 0:01:35]}  c5 {[%clk 0:01:46]} 20. e3 {[%clk 0:01:13]}  Bc6 {[%clk 0:01:25]} 21. Nxe4 {[%clk 0:00:45]}  dxe4 {[%clk 0:01:20]} 22. Nb2 {[%clk 0:00:41]}  Bb7 {[%clk 0:01:07]} 23. Nc4 {[%clk 0:00:37]}  Bc7 {[%clk 0:01:06]} 24. Bc3 {[%clk 0:00:35]}  Nd5 {[%clk 0:01:06]} 25. Qe1 {[%clk 0:00:23]}  Nxc3 {[%clk 0:01:04]} 26. Qxc3 {[%clk 0:00:23]}  cxd4 {[%clk 0:01:04]} 27. exd4 {[%clk 0:00:23]}  Qf6 {[%clk 0:00:56]} 28. Rd1 {[%clk 0:00:21]}  Re7 {[%clk 0:00:52]} 29. Ne3 {[%clk 0:00:21]}  Bd6 {[%clk 0:00:40]} 30. Qb2 {[%clk 0:00:19]}  g6 {[%clk 0:00:38]} 31. Qc1 {[%clk 0:00:19]}  h5 {[%clk 0:00:35]} 32. Nc4 {[%clk 0:00:18]}  Bc7 {[%clk 0:00:35]} 33. Ne3 {[%clk 0:00:18]}  Kg7 {[%clk 0:00:35]} 34. Rxc7 {[%clk 0:00:17]}  Ba8 {[%clk 0:00:20]} 35. Rxe7 {[%clk 0:00:16]}  Qxe7 {[%clk 0:00:21]} 36. Qc3 {[%clk 0:00:17]}  Kh7 {[%clk 0:00:20]} 37. d5 {[%clk 0:00:16]}  Qd6 {[%clk 0:00:20]} 38. Qc4 {[%clk 0:00:16]}  f5 {[%clk 0:00:20]} 39. Qd4 {[%clk 0:00:15]}  f4 {[%clk 0:00:19]} 40. gxf4 {[%clk 0:00:15]}  Qxf4 {[%clk 0:00:19]} 41. Qxe4 {[%clk 0:00:15]}  Qf6 {[%clk 0:00:19]} 42. Nc4 {[%clk 0:00:13]}  Rf8 {[%clk 0:00:19]} 43. Rf1 {[%clk 0:00:13]}  Rf7 {[%clk 0:00:18]} 44. Qe6 {[%clk 0:00:14]}  Qf4 {[%clk 0:00:17]} 45. Qxb6 {[%clk 0:00:13]}  Qg4 {[%clk 0:00:15]} 46. Qd8 {[%clk 0:00:13]}  Rd7 {[%clk 0:00:14]} 47. Qe8 {[%clk 0:00:11]}  Bxd5 {[%clk 0:00:14]} 48. f3 {[%clk 0:00:11]}  Qd4+ {[%clk 0:00:14]} 49. Kh2 {[%clk 0:00:10]}  Bf7 {[%clk 0:00:13]} 50. Qe4 {[%clk 0:00:08]}  Qc3 {[%clk 0:00:11]} 51. Rf2 {[%clk 0:00:07]}  Qxb3 {[%clk 0:00:11]} 52. Re2 {[%clk 0:00:07]}  Bxc4 {[%clk 0:00:10]} 53. Re3 {[%clk 0:00:07]}  Qb8+ {[%clk 0:00:10]} 54. Kg1 {[%clk 0:00:05]}  Qd8 {[%clk 0:00:10]} 55. Qe5 {[%clk 0:00:05]}  Rd1+ {[%clk 0:00:09]} 56. Kh2 {[%clk 0:00:05]}  Qxh4+ {[%clk 0:00:09]} 57. Bh3 {[%clk 0:00:06]}  Rd2+ {[%clk 0:00:09]} 58. Kg1 {[%clk 0:00:06]}  Rd1+ {[%clk 0:00:08]} 59. Kh2 {[%clk 0:00:06]}  Qf2+ {[%clk 0:00:07]} 60. Bg2 {[%clk 0:00:06]}  Bf7 {[%clk 0:00:07]} 61. Qe7 {[%clk 0:00:06]}  Kg7 {[%clk 0:00:06]} 62. Qe5+ {[%clk 0:00:05]}  Kg8 {[%clk 0:00:06]} 63. Qb8+ {[%clk 0:00:05]}  Kh7 {[%clk 0:00:06]} 64. Qe5 {[%clk 0:00:05]}  Qh4+ {[%clk 0:00:06]} 65. Bh3 {[%clk 0:00:05]}  Rd2+ {[%clk 0:00:07]} 66. Re2 {[%clk 0:00:05]}  Rxe2+ {[%clk 0:00:06]} 67. Qxe2 {[%clk 0:00:05]}  Qf4+ {[%clk 0:00:07]} 68. Kg2 {[%clk 0:00:05]}  h4 {[%clk 0:00:07]} 69. Qe7 {[%clk 0:00:05]}  Qg3+ {[%clk 0:00:08]} 70. Kf1 {[%clk 0:00:04]}  Qxh3+ {[%clk 0:00:08]} 71. Ke2 {[%clk 0:00:05]}  Qf5 {[%clk 0:00:08]} 72. Kf2 {[%clk 0:00:04]}  Qf4 {[%clk 0:00:08]} 73. Qd8 {[%clk 0:00:02]}  Kg7 {[%clk 0:00:08]} 0-1


[Site "https://www.chess.com"]